bitfinex/quotes_SOLUSD_20220129
["timestamp","ask_amount","ask_price","bid_price","bid_amount"]
[1643500539056,34.1185205,96.331,96.26,0.25]
[1643500539653,34.1185205,96.331,96.258,1.40725451]
[1643500539654,15.06,96.35,96.258,1.40725451]
[1643500539863,15.06,96.35,96.26,1.40725451]
[1643500540058,6.0,96.34,96.26,1.40725451]
[1643500540257,0.25,96.339,96.261,0.25]
[1643500540854,34.45052268,96.339,96.261,0.25]
[1643500541110,34.45052268,96.339,96.261,1.65725451]
[1643500543366,34.20052268,96.339,96.261,1.65725451]
[1643500543608,34.20052268,96.339,96.271,6.0]
[1643500543757,34.20052268,96.339,96.272,0.25]
[1643500543966,34.20052268,96.339,96.272,6.25]
[1643500544162,34.20052268,96.339,96.272,0.25]
[1643500544968,34.20052268,96.339,96.268,0.25]
[1643500545375,34.20052268,96.339,96.266,0.25]
[1643500546360,34.20052268,96.339,96.271,1.40725451]
[1643500546782,34.20052268,96.339,96.272,0.25]
[1643500546966,34.20052268,96.339,96.272,1.40725451]
[1643500547380,34.20052268,96.339,96.274,1.40725451]
[1643500547563,0.25,96.338,96.274,1.40725451]
[1643500547797,0.25,96.338,96.264,1.40725451]
[1643500548177,0.25,96.338,96.265,0.25]
[1643500548561,34.20052268,96.339,96.265,0.25]
[1643500548764,0.25,96.338,96.265,0.25]
[1643500549364,0.25,96.338,96.264,1.40725451]
[1643500549561,34.20052268,96.339,96.265,0.25]
[1643500549765,0.25,96.338,96.265,0.25]
[1643500549964,0.25,96.338,96.265,1.65725451]
[1643500551080,0.25,96.338,96.266,1.40725451]
[1643500551381,0.25,96.338,96.267,0.25]
[1643500552465,0.25,96.338,96.266,1.40725451]
[1643500552668,0.25,96.338,96.267,0.25]
[1643500553668,6.0,96.329,96.267,0.25]
[1643500553885,6.0,96.329,96.266,0.25]
[1643500554269,6.0,96.329,96.265,0.25]
[1643500554471,6.0,96.329,96.265,1.65725451]
[1643500554682,6.0,96.329,96.265,1.40725451]
[1643500554967,6.0,96.329,96.266,0.25]
[1643500555376,0.25,96.328,96.266,1.65725451]
[1643500555668,0.25,96.328,96.266,0.25]
[1643500556273,0.25,96.328,96.265,0.25]
[1643500558415,0.25,96.328,96.265,1.65725451]
[1643500558578,0.25,96.328,96.265,1.40725451]
[1643500558777,0.25,96.328,96.266,0.25]
[1643500559595,6.0,96.329,96.266,0.25]
[1643500559881,6.0,96.329,96.268,1.40725451]
[1643500560089,6.0,96.329,96.278,6.0]
[1643500560301,6.0,96.329,96.279,0.25]
[1643500560528,6.0,96.329,96.279,6.0]
[1643500560708,6.0,96.329,96.281,6.0]
[1643500560921,0.25,96.328,96.281,6.0]
[1643500561127,0.25,96.328,96.267,1.40725451]
[1643500561314,0.25,96.328,96.266,1.40725451]
[1643500561726,0.25,96.328,96.267,0.25]
[1643500562727,0.25,96.328,96.267,1.65725451]
[1643500562909,0.25,96.328,96.267,1.40725451]
[1643500563320,0.25,96.328,96.269,1.40725451]
[1643500563514,6.0,96.329,96.271,1.40725451]
[1643500563731,6.0,96.329,96.275,1.40725451]
[1643500563918,6.0,96.329,96.276,1.40725451]
[1643500564116,6.0,96.329,96.251,4.92921099]
[1643500564117,6.0,96.329,96.274,1.40725451]
[1643500564818,0.25,96.328,96.273,1.40725451]
[1643500565023,0.25,96.328,96.274,1.40725451]
[1643500565412,0.25,96.328,96.279,1.40725451]
[1643500566040,0.25,96.328,96.278,1.40725451]
[1643500566212,0.25,96.328,96.279,1.40725451]
[1643500566415,6.0,96.329,96.279,1.40725451]
[1643500566614,6.0,96.329,96.282,1.40725451]
[1643500567044,6.0,96.329,96.281,1.40725451]
[1643500567623,6.0,96.329,96.282,0.25]
[1643500568527,6.0,96.329,96.281,1.40725451]
[1643500568716,0.25,96.328,96.279,1.40725451]
[1643500568914,0.25,96.328,96.276,1.40725451]
[1643500569251,0.25,96.328,96.249,18.36362837]
[1643500569252,0.25,96.328,96.274,1.40725451]
[1643500569626,6.0,96.32,96.27,1.40725451]
[1643500569916,41.43101652,96.319,96.269,1.40725451]
[1643500570113,6.0,96.309,96.265,1.40725451]
[1643500570322,0.25,96.308,96.263,1.40725451]
[1643500570514,0.25,96.308,96.261,1.40725451]
[1643500570717,0.25,96.308,96.228,22.6493]
[1643500570718,0.25,96.308,96.26,1.40725451]
[1643500570922,0.25,96.308,96.257,1.40725451]
[1643500571225,34.20052268,96.299,96.253,1.40725451]
[1643500571430,34.20052268,96.299,96.251,1.40725451]
[1643500571616,6.0,96.289,96.248,1.40725451]
[1643500571820,0.25,96.288,96.248,1.40725451]
[1643500572024,0.25,96.288,96.242,1.40725451]
[1643500572665,0.25,96.288,96.241,1.40725451]
[1643500572820,0.25,96.288,96.223,4.93721634]
[1643500572821,0.25,96.288,96.239,1.40725451]
[1643500573024,6.25,96.288,96.237,1.40725451]
[1643500573222,6.25,96.288,96.235,1.40725451]
[1643500573424,6.0,96.28,96.233,1.40725451]
[1643500573625,6.0,96.278,96.233,1.40725451]
[1643500573833,6.0,96.278,96.232,1.40725451]
[1643500574035,6.0,96.278,96.192,16.83764263]
[1643500574036,6.0,96.278,96.234,1.40725451]
[1643500574217,6.0,96.278,96.235,1.40725451]
[1643500574656,6.0,96.278,96.228,1.40725451]
[1643500575023,0.25,96.277,96.228,1.40725451]
[1643500575228,6.0,96.278,96.228,1.40725451]
[1643500575430,6.0,96.278,96.207,4.93235037]
[1643500575431,6.0,96.278,96.229,1.40725451]
[1643500575620,6.0,96.278,96.207,4.93235037]
[1643500575621,6.0,96.278,96.228,1.40725451]
[1643500575819,0.25,96.277,96.228,1.40725451]
[1643500577630,6.0,96.278,96.225,1.40725451]
[1643500577829,6.0,96.278,96.226,1.40725451]
[1643500578024,0.25,96.277,96.224,1.40725451]
[1643500578427,0.25,96.277,96.223,1.40725451]
[1643500578624,0.25,96.277,96.224,1.40725451]
[1643500579234,1.43802207,96.34,96.225,0.25]
[1643500579477,24.8759,96.329,96.239,1.40725451]
[1643500579626,49.8324,96.329,96.239,1.40725451]
[1643500579838,49.8324,96.329,96.222,16.83764263]
[1643500579839,6.0,96.319,96.242,1.40725451]
[1643500580226,41.72684544,96.318,96.24,1.40725451]
[1643500580626,24.8004,96.317,96.24,1.40725451]
[1643500580826,25.0504,96.317,96.24,1.40725451]
[1643500581632,25.0504,96.317,96.241,0.25]
[1643500582068,24.8004,96.317,96.243,1.40725451]
[1643500582238,24.8004,96.317,96.246,1.40725451]
[1643500582432,24.8004,96.317,96.244,1.40725451]
[1643500582433,0.25,96.316,96.244,1.40725451]
[1643500582835,24.8004,96.317,96.245,0.25]
[1643500583240,24.8004,96.317,96.247,1.40725451]
[1643500583464,0.25,96.316,96.247,1.40725451]
[1643500583647,0.25,96.316,96.248,0.25]
[1643500583834,0.25,96.316,96.245,1.65725451]
[1643500584054,6.0,96.307,96.245,1.65725451]
[1643500584247,6.0,96.307,96.245,0.25]
[1643500584441,0.25,96.306,96.245,0.25]
[1643500584634,24.8004,96.317,96.245,0.25]
[1643500584935,0.25,96.316,96.245,1.65725451]
[1643500585135,24.8004,96.317,96.246,0.25]
[1643500585334,41.72684544,96.318,96.249,1.40725451]
[1643500585590,41.72684544,96.318,96.247,1.40725451]
[1643500585736,41.72684544,96.318,96.246,2.48710236]
[1643500585737,41.72684544,96.318,96.248,1.40725451]
[1643500585943,41.72684544,96.318,96.25,1.40725451]
[1643500586334,6.0,96.308,96.251,1.40725451]
[1643500586735,6.0,96.308,96.244,1.40725451]
[1643500586736,0.25,96.307,96.244,1.40725451]
[1643500586964,0.25,96.307,96.243,1.40725451]
[1643500587364,0.25,96.307,96.244,0.25]
[1643500587783,0.25,96.307,96.242,1.40725451]
[1643500587968,0.25,96.307,96.236,1.40725451]
[1643500588175,0.25,96.307,96.235,1.40725451]
[1643500588371,6.0,96.3,96.236,0.25]
[1643500588685,33.65469376,96.299,96.236,0.25]
[1643500588975,33.90469376,96.299,96.236,0.25]
[1643500590168,33.90469376,96.299,96.235,1.40725451]
[1643500590373,33.65469376,96.299,96.236,1.65725451]
[1643500590669,23.14960025,96.351,96.236,1.65725451]
[1643500590670,3.0,96.311,96.242,1.40725451]
[1643500590909,3.0,96.346,96.251,1.40725451]
[1643500591268,5.42528476,96.337,96.256,1.40725451]
[1643500591469,5.42528476,96.337,96.257,1.40725451]
[1643500591680,43.30880005,96.336,96.257,1.40725451]
[1643500591872,43.30880005,96.336,96.258,0.25]
[1643500592075,6.0,96.326,96.258,0.25]
[1643500592269,0.25,96.325,96.258,0.25]
[1643500593279,6.0,96.326,96.258,1.65725451]
[1643500593557,6.0,96.326,96.259,1.65725451]
[1643500593683,6.0,96.326,96.259,0.90725451]
[1643500593880,6.0,96.326,96.254,0.25]
[1643500594883,6.0,96.326,96.253,23.3402]
[1643500595078,0.25,96.325,96.253,23.3402]
[1643500596327,0.25,96.325,96.254,0.25]
[1643500596576,3.0,96.336,96.254,107.08710236]
[1643500596780,15.06,96.36,96.263,6.0]
[1643500597001,15.06,96.36,96.264,6.0]
[1643500597178,15.06,96.36,96.264,6.25]
[1643500597387,15.06,96.36,96.266,6.0]
[1643500597577,35.56552458,96.359,96.274,6.0]
[1643500597776,35.56552458,96.359,96.275,0.25]
[1643500597985,35.56552458,96.359,96.275,6.25]
[1643500598416,6.0,96.349,96.275,6.25]
[1643500598593,35.56552458,96.359,96.285,6.0]
[1643500598778,5.42399859,96.381,96.286,0.25]
[1643500598980,3.0,96.377,96.286,31.79970236]
[1643500599189,3.0,96.377,96.287,106.83710236]
[1643500599381,0.25,96.376,96.288,0.25]
[1643500599584,0.25,96.376,96.297,6.0]
[1643500599792,44.89710426,96.376,96.298,0.25]
[1643500599986,44.64710426,96.376,96.298,6.25]
[1643500600390,44.64710426,96.376,96.299,6.0]
[1643500600787,0.25,96.375,96.3,0.25]
[1643500601983,0.25,96.375,96.29,0.25]
[1643500602188,0.25,96.375,96.289,0.25]
[1643500602644,24.5592,96.375,96.289,0.25]
[1643500603184,24.5592,96.375,96.288,23.853]
[1643500603388,6.0,96.365,96.272,2.23710236]
[1643500603669,6.0,96.365,96.255,17.99319818]
[1643500603670,15.06,96.36,96.255,17.99319818]
[1643500603799,24.98443494,96.359,96.255,17.99319818]
[1643500604001,6.0,96.349,96.265,6.0]
[1643500604410,0.25,96.348,96.266,0.25]
[1643500605397,0.25,96.349,96.266,0.25]
[1643500606038,0.25,96.349,96.266,6.25]
[1643500606220,0.25,96.349,96.266,6.0]
[1643500606426,0.25,96.349,96.267,0.25]
[1643500607422,41.75666229,96.339,96.267,0.25]
[1643500607618,6.0,96.329,96.267,0.25]
[1643500607835,6.0,96.329,96.257,104.85]
[1643500608050,6.0,96.329,96.267,6.0]
[1643500608231,6.0,96.329,96.268,2.23710236]
[1643500608428,6.0,96.329,96.268,2.48710236]
[1643500609225,6.0,96.329,96.269,2.23710236]
[1643500609627,6.0,96.329,96.27,0.25]
[1643500609827,3.0,96.355,96.27,0.25]
[1643500610032,3.0,96.355,96.271,2.23710236]
[1643500610442,3.0,96.355,96.272,0.25]
[1643500610829,44.61965149,96.354,96.272,0.25]
[1643500611051,44.86965149,96.354,96.272,0.25]
[1643500611239,44.61965149,96.354,96.272,0.25]
[1643500611830,0.25,96.353,96.272,0.25]
[1643500612233,0.25,96.353,96.271,0.25]
[1643500612486,44.61965149,96.354,96.271,0.25]
[1643500612635,0.25,96.353,96.271,0.25]
[1643500613440,0.25,96.353,96.259,2.23710236]
[1643500613754,0.25,96.353,96.219,2.83102837]
[1643500613755,3.0,96.332,96.219,2.83102837]
[1643500613935,24.76188771,96.338,96.204,48.9956]
[1643500613936,3.0,96.315,96.205,4.91622908]
[1643500614150,6.0,96.305,96.205,4.91622908]
[1643500614335,25.01188771,96.304,96.205,4.91622908]
[1643500614568,6.0,96.294,96.205,4.91622908]
[1643500614941,0.25,96.293,96.205,4.91622908]
[1643500615542,0.25,96.293,96.206,0.25]
[1643500615937,0.25,96.293,96.205,0.25]
[1643500616548,6.0,96.29,96.205,0.25]
[1643500616738,35.22719514,96.289,96.205,0.25]
[1643500616967,41.47719514,96.289,96.205,0.25]
[1643500617186,35.47719514,96.289,96.205,0.25]
[1643500619372,35.47719514,96.289,96.214,6.0]
[1643500619800,35.47719514,96.289,96.215,0.25]
[1643500621079,35.22719514,96.289,96.215,0.25]
[1643500621476,35.22719514,96.289,96.216,4.91046963]
[1643500621901,35.22719514,96.289,96.226,6.0]
[1643500622274,35.22719514,96.289,96.227,0.25]
[1643500623274,35.22719514,96.289,96.219,0.25]
[1643500623674,35.22719514,96.289,96.215,6.0]
[1643500623900,23.3191,96.313,96.215,0.25]
[1643500624099,209.1999586,96.34,96.225,6.0]
[1643500624288,209.1999586,96.34,96.226,0.25]
[1643500624577,209.1999586,96.34,96.226,123.69]
[1643500624903,45.18222799,96.339,96.226,123.69]
[1643500625289,0.25,96.338,96.226,123.69]
[1643500625495,0.25,96.338,96.226,110.85]
[1643500625682,0.25,96.338,96.227,4.9091433]
[1643500625976,0.25,96.338,96.231,104.6]
[1643500626085,0.25,96.338,96.241,6.0]
[1643500626294,0.25,96.338,96.242,0.25]
[1643500626478,0.25,96.338,96.248,6.0]
[1643500626889,0.25,96.338,96.249,0.25]
[1643500627486,0.25,96.338,96.249,6.25]
[1643500629685,5.42504023,96.337,96.249,6.25]
[1643500629900,0.25,96.336,96.25,104.6]
[1643500630090,0.25,96.336,96.261,104.6]
[1643500630293,0.25,96.336,96.262,0.25]
[1643500630496,0.25,96.336,96.271,6.0]
[1643500630984,0.25,96.336,96.273,6.0]
[1643500631380,0.25,96.336,96.274,0.25]
[1643500632189,5.42504023,96.337,96.274,0.25]
[1643500633390,5.42504023,96.337,96.274,6.25]
[1643500633788,5.42504023,96.337,96.274,0.25]
[1643500634186,5.42504023,96.337,96.263,0.25]
[1643500636290,0.25,96.336,96.263,0.25]
[1643500638387,5.42504023,96.337,96.263,0.25]
[1643500639088,5.42504023,96.337,96.238,2.23710151]
[1643500639289,6.0,96.327,96.24,0.25]
[1643500639489,24.0852,96.326,96.24,0.25]
[1643500639689,24.3352,96.326,96.24,0.25]
[1643500639988,24.19931121,96.315,96.24,0.25]
[1643500640601,24.19931121,96.315,96.235,0.25]
[1643500640798,23.6977,96.314,96.235,0.25]
[1643500641603,0.25,96.314,96.236,2.23710151]
[1643500641806,0.25,96.314,96.237,0.25]
[1643500642427,15.06,96.31,96.237,0.25]
[1643500642594,15.06,96.31,96.22,24.8261]
[1643500642595,15.06,96.31,96.23,6.0]
[1643500642810,0.25,96.309,96.23,6.0]
[1643500642993,6.0,96.3,96.205,2.83102837]
[1643500643228,39.61871411,96.299,96.215,6.0]
[1643500643491,24.7113,96.298,96.211,6.0]
[1643500643624,24.7113,96.298,96.216,8.23710151]
[1643500643842,0.25,96.297,96.216,8.23710151]
[1643500644049,0.25,96.297,96.216,6.0]
[1643500644227,0.25,96.297,96.202,48.2737]
[1643500644642,0.25,96.297,96.203,4.92274067]
[1643500645049,0.25,96.297,96.202,48.2737]
[1643500645242,0.25,96.297,96.203,4.92493538]
[1643500645657,0.25,96.297,96.202,48.2737]
[1643500645834,0.25,96.297,96.203,4.92660796]
[1643500646041,0.25,96.297,96.202,48.2737]
[1643500646631,0.25,96.297,96.203,0.25]
[1643500647635,0.25,96.297,96.212,6.0]
[1643500647831,0.25,96.297,96.213,0.25]
[1643500648043,0.25,96.297,96.213,6.25]
[1643500648833,24.7113,96.298,96.213,6.25]
[1643500649045,24.7113,96.298,96.214,2.23710151]
[1643500649239,24.7113,96.298,96.215,4.9220018]
[1643500649432,24.7113,96.298,96.224,6.0]
[1643500649694,24.7113,96.298,96.225,6.0]
[1643500649833,39.61871411,96.299,96.225,6.0]
[1643500649834,39.61871411,96.299,96.226,0.25]
[1643500650035,3.0,96.332,96.234,6.0]
[1643500650236,46.4034,96.339,96.234,6.0]
[1643500650440,46.4034,96.339,96.235,0.25]
[1643500650641,0.25,96.338,96.238,110.6]
[1643500650936,0.25,96.338,96.239,0.25]
[1643500651137,35.60225069,96.338,96.246,6.0]
[1643500651337,35.60225069,96.338,96.247,24.2151]
[1643500652348,3.0,96.334,96.247,24.2151]
[1643500652751,0.25,96.333,96.247,24.2151]
[1643500655148,0.25,96.337,96.247,24.2151]
[1643500656540,0.25,96.337,96.248,2.23710151]
[1643500656746,0.25,96.337,96.247,23.9651]
[1643500658342,0.25,96.337,96.248,0.25]
[1643500665392,46.4034,96.339,96.249,2.23710151]
[1643500665581,3.0,96.359,96.259,6.0]
[1643500665881,27.1387,96.359,96.26,0.25]
[1643500666083,6.0,96.349,96.26,2.48710151]
[1643500666275,6.0,96.349,96.261,2.23710151]
[1643500666478,37.44216195,96.348,96.262,24.9958]
[1643500666678,37.44216195,96.348,96.262,25.2458]
[1643500666912,6.0,96.338,96.262,27.48290151]
[1643500669978,6.0,96.337,96.262,27.48290151]
[1643500671884,6.0,96.338,96.262,27.48290151]
[1643500672484,6.0,96.338,96.263,104.6]
[1643500672682,6.0,96.338,96.272,6.0]
[1643500672903,6.0,96.338,96.273,6.25]
[1643500673084,6.0,96.338,96.274,6.0]
[1643500673286,6.0,96.338,96.275,0.25]
[1643500674491,6.0,96.338,96.276,2.23710151]
[1643500674887,6.0,96.338,96.277,0.25]
[1643500675292,6.0,96.338,96.278,2.23710151]
[1643500675703,6.0,96.338,96.279,0.25]
[1643500675988,6.0,96.338,96.28,2.23710151]
[1643500676387,6.0,96.338,96.281,0.25]
[1643500676888,6.0,96.338,96.282,2.23710151]
[1643500677309,6.0,96.338,96.283,0.25]
[1643500678932,6.0,96.338,96.283,2.23710151]
[1643500679108,6.0,96.338,96.273,0.25]
[1643500679491,6.0,96.338,96.274,2.23710151]
[1643500679892,6.0,96.338,96.275,0.25]
[1643500680097,6.0,96.337,96.275,0.25]
[1643500680601,6.0,96.337,96.276,2.23710151]
[1643500680831,6.0,96.337,96.277,0.25]
[1643500681008,6.0,96.338,96.276,2.23710151]
[1643500681295,6.0,96.338,96.25,2.83102837]
[1643500681498,6.0,96.338,96.243,2.23710151]
[1643500681499,6.0,96.338,96.243,5.06812988]
[1643500681695,6.0,96.338,96.245,2.83102837]
[1643500681900,0.25,96.337,96.245,2.83102837]
[1643500682095,24.8778,96.337,96.243,2.23710151]
[1643500682308,24.8778,96.337,96.263,0.25]
[1643500682708,24.6278,96.337,96.272,6.0]
[1643500682956,24.6278,96.337,96.273,0.25]
[1643500683097,24.6278,96.337,96.274,6.0]
[1643500683300,24.6278,96.337,96.275,0.25]
[1643500683505,24.6278,96.337,96.283,6.0]
[1643500683896,24.6278,96.337,96.284,0.25]
[1643500684096,6.0,96.338,96.284,0.25]
[1643500685095,6.0,96.338,96.283,6.0]
[1643500685294,6.0,96.338,96.273,2.23710151]
[1643500686606,0.25,96.337,96.274,0.25]
[1643500687199,6.25,96.337,96.274,0.25]
[1643500687506,6.25,96.337,96.263,2.23710151]
[1643500687699,6.25,96.337,96.274,0.25]
[1643500687901,22.8396,96.336,96.274,0.25]
[1643500688370,0.25,96.335,96.274,0.25]
[1643500688744,0.25,96.335,96.263,0.25]
[1643500689526,22.8396,96.336,96.263,0.25]
[1643500690130,0.25,96.335,96.263,0.25]
[1643500690746,22.8396,96.336,96.263,0.25]
[1643500690929,0.25,96.335,96.263,0.25]
[1643500691935,22.8396,96.336,96.263,0.25]
[1643500692338,0.25,96.335,96.263,0.25]
[1643500692743,0.25,96.335,96.258,0.25]
[1643500693031,0.25,96.335,96.243,0.25]
[1643500693264,23.1754,96.335,96.24,0.25]
[1643500693443,23.1754,96.335,96.244,2.23703829]
[1643500693634,23.1754,96.335,96.245,4.90781272]
[1643500693845,23.1754,96.335,96.245,5.15781272]
[1643500694034,23.1754,96.335,96.246,2.23703829]
[1643500694235,23.1754,96.335,96.245,0.25]
[1643500694435,22.9254,96.335,96.247,0.25]
[1643500694637,0.25,96.334,96.245,0.25]
[1643500695042,6.0,96.325,96.245,0.25]
[1643500695247,24.8144,96.324,96.245,0.25]
[1643500695449,25.0644,96.324,96.245,0.25]
[1643500695641,25.0644,96.324,96.234,0.25]
[1643500695857,25.0644,96.324,96.235,4.91088955]
[1643500696237,25.0644,96.324,96.236,0.25]
[1643500697342,25.0644,96.324,96.234,0.25]
[1643500697939,25.0644,96.324,96.235,4.90674871]
[1643500698340,25.0644,96.324,96.236,0.25]
[1643500699478,25.0644,96.324,96.234,0.25]
[1643500705067,25.0644,96.324,96.243,6.0]
[1643500705068,24.8144,96.324,96.243,6.0]
[1643500705267,24.8144,96.324,96.244,129.0697]
[1643500705464,24.8144,96.324,96.244,131.30673829]
[1643500705674,24.8144,96.324,96.254,6.0]
[1643500705851,24.8144,96.324,96.255,25.2369]
[1643500706061,24.8144,96.324,96.255,31.2369]
[1643500706460,24.8144,96.324,96.255,25.2369]
[1643500707063,22.9254,96.335,96.265,6.0]
[1643500707251,3.0,96.359,96.266,0.25]
[1643500707468,24.3473,96.347,96.266,24.6022]
[1643500707662,6.0,96.338,96.266,30.6022]
[1643500707954,6.0,96.337,96.266,30.6022]
[1643500708184,3.0,96.359,96.267,106.83703829]
[1643500708352,24.2825,96.369,96.268,0.25]
[1643500708554,24.2825,96.369,96.278,104.6]
[1643500708764,24.2825,96.369,96.279,0.25]
[1643500708964,24.2825,96.369,96.288,110.6]
[1643500709152,24.2825,96.369,96.289,23.1246]
[1643500709360,43.89889953,96.368,96.289,23.3746]
[1643500709557,43.89889953,96.368,96.27,15.06]
[1643500709857,43.89889953,96.368,96.281,0.25]
[1643500710061,43.89889953,96.368,96.281,6.25]
[1643500710256,43.89889953,96.368,96.282,26.62793829]
[1643500710660,3.0,96.385,96.282,26.62793829]
[1643500710862,3.0,96.385,96.316,0.31940572]
[1643500711063,24.3862,96.423,96.316,0.31940572]
[1643500711273,3.0,96.415,96.317,2.23703829]
[1643500711520,24.3862,96.423,96.32,15.06]
[1643500711678,39.21214482,96.402,96.327,6.0]
[1643500711882,39.21214482,96.402,96.318,21.53547721]
[1643500711883,39.21214482,96.402,96.331,104.6]
[1643500712071,39.21214482,96.402,96.341,6.0]
[1643500712308,39.21214482,96.402,96.342,0.25]
[1643500712559,24.4706,96.429,96.342,0.25]
[1643500712665,24.4706,96.429,96.343,8.23703829]
[1643500712867,3.0,96.438,96.344,0.25]
[1643500713282,3.0,96.438,96.345,2.23703829]
[1643500713726,2.84659719,96.481,96.355,6.0]
[1643500713883,1.43805723,96.476,96.37,15.06]
[1643500714405,1.43805723,96.476,96.38,6.0]
[1643500714614,6.0,96.466,96.38,6.0]
[1643500714816,0.25,96.465,96.381,0.25]
[1643500714999,6.0,96.463,96.381,0.25]
[1643500715198,6.0,96.463,96.39,6.0]
[1643500715399,6.0,96.463,96.391,0.25]
[1643500715603,0.25,96.462,96.391,6.25]
[1643500715833,6.0,96.463,96.381,2.24567606]
[1643500715999,6.0,96.463,96.37,15.06]
[1643500716211,6.0,96.463,96.38,6.0]
[1643500716886,6.0,96.463,96.381,2.24567606]
[1643500717000,6.0,96.463,96.391,6.0]
[1643500717403,6.0,96.463,96.392,0.25]
[1643500717800,0.25,96.462,96.392,0.25]
[1643500718018,6.0,96.463,96.392,0.25]
[1643500718906,6.0,96.463,96.382,0.25]
[1643500719303,6.0,96.463,96.382,2.49567606]
[1643500719503,6.0,96.463,96.382,8.49567606]
[1643500719703,6.0,96.463,96.383,2.24567606]
[1643500720132,6.0,96.463,96.393,6.0]
[1643500720309,6.0,96.463,96.394,0.25]
[1643500720706,6.0,96.463,96.395,2.24567606]
[1643500720907,0.1,96.486,96.396,0.25]
[1643500721108,0.1,96.486,96.405,6.0]
[1643500721327,0.1,96.486,96.406,0.25]
[1643500721508,0.1,96.486,96.41,6.0]
[1643500722025,35.11055653,96.486,96.416,6.0]
[1643500722219,35.11055653,96.486,96.411,0.25]
[1643500722220,0.1,96.485,96.411,0.25]
[1643500722412,0.1,96.485,96.417,2.24567606]
[1643500722620,0.1,96.486,96.427,6.31681931]
[1643500722818,0.1,96.486,96.428,0.25]
[1643500723124,6.0,96.515,96.428,0.25]
[1643500723308,42.35445381,96.495,96.428,0.25]
[1643500723526,0.1,96.494,96.428,0.25]
[1643500723927,0.35,96.494,96.428,0.25]
[1643500724133,0.35,96.494,96.421,0.25]
[1643500724909,42.20445381,96.495,96.421,0.25]
[1643500725312,23.3642,96.514,96.421,0.25]
[1643500725585,23.3642,96.514,96.421,23.1684]
[1643500726025,3.0,96.523,96.431,6.0]
[1643500726325,3.0,96.523,96.441,104.6]
[1643500726471,3.0,96.523,96.442,23.8397]
[1643500726697,24.81204639,96.531,96.452,6.0]
[1643500726823,24.81204639,96.531,96.45,15.06]
[1643500727032,24.81204639,96.531,96.43,15.06]
[1643500727213,23.3062,96.53,96.433,0.25]
[1643500727419,23.3062,96.53,96.44,6.0]
[1643500727614,23.3062,96.53,96.44,21.06]
[1643500727813,23.3062,96.53,96.441,24.8066]
[1643500728012,23.3062,96.53,96.451,6.0]
[1643500728523,23.3062,96.53,96.452,0.25]
[1643500728732,0.25,96.529,96.452,0.25]
[1643500728914,0.25,96.529,96.451,6.0]
[1643500729113,0.25,96.529,96.452,0.25]
[1643500730243,0.25,96.529,96.45,6.0]
[1643500730411,0.25,96.529,96.441,24.5217]
[1643500730412,6.0,96.52,96.441,24.5217]